[Event "Austrian Championship 2022"]
[Site "Vienna"]
[Date "2022.08.15"]
[Round "5.8"]
[White "Sadilek, Peter"]
[Black "Kruckenhauser, Arthur"]
[Result "0-1"]
[ECO "E01"]
[WhiteElo "2330"]
[BlackElo "2303"]
[Annotator "TA"]
[PlyCount "124"]
[EventDate "2022.08.12"]
[EventType "swiss"]
[EventCountry "AUT"]
[SourceTitle "playchess.com"]
[Source "ChessBase"]
[SourceQuality "1"]
[TimeControl "40/5400+30:1800+30"]

{[%evp 13,124,0,1,12,43,47,123,141,182,175,197,207,196,81,68,58,62,70,63,55,108,65,52,65,126,122,129,22,33,24,23,0,0,-7,-8,-7,-9,-15,57,32,78,34,27,0,0,-66,-70,-72,-71,-164,-138,-329,-308,-333,-323,-329,-318,-309,-264,-274,-276,-241,-240,-240,0,0,0,-219,-25,-25,-25,-25,-25,-25,-25,-25,-33,-1629,-1721,-1447,-1374,-9387,-10212,-8169,-7892,-8667,-6725,-5069,-4139,-6720,-6199,-29974,-29975,-29978,-29979,-29979,-29980,-29983,-29979,-29983,-29984,-29984,-29985,-29986,-29987,-29987,-29988,-29991,-29990,-29990,-29986,-29986,-29987]} 1. Nf3 {[%emt 0:05:52]} d5 {[%emt 0:00:14]} 2. d4 {[%emt 0:00:08]} e6 {[%emt 0:00:50]} 3. c4 {[%emt 0:00:16]} c6 {[%emt 0:00:05]} 4. Nc3 {[%emt 0:01:01]} dxc4 {[%emt 0:01:13]} 5. g3 {[%emt 1:25:43]} Nf6 {[%emt 0:00:52]} 6. Bg2 {[%emt 0:00:00]} Nbd7 {[%emt 0:04:04]} 7. O-O {[%emt 0:00:00]} Be7 {[%emt 0:00:55]} 8. e4 {[%emt 0:00:00] The main line 8.e4 scores better than 8.a4. E01: Catalan: Early deviations.} b5 {[%emt 0:14:20]} 9. d5 $1 {[%emt 0:00:00]} exd5 {[%emt 0:08:13]} (9... b4 $14 10. dxe6 fxe6) 10. exd5 $16 {[%emt 0:00:00] White is better.} cxd5 {[%emt 0:03:31]} 11. Nxd5 {[%emt 0:00:00]} Nxd5 {[%emt 0:08:26]} 12. Qxd5 {[%emt 0:00:00]} Nb6 {[%emt 0:00:08]} 13. Qxb5+ {[%emt 0:00:00]} (13. Qxd8+ $18 {is the precise move to win.} Bxd8 14. Nd4) 13... Bd7 {[%emt 0:06:09]} 14. Qh5 {[%emt 0:00:00] [#] And now Ng5 would win.} O-O $146 {[%emt 0:01:50]} (14... g6 $2 15. Qh6 Be6 16. Bg5 $18) ({Predecessor:} 14... Rc8 15. Ne5 Be6 16. Bc6+ Kf8 17. Rd1 Bd6 18. Bf4 Kg8 19. Rd2 g6 20. Qd1 {1-0 (20) Matys,J (1772)-Kovar,J (1885) Ricany 2019}) 15. Ne5 {[%emt 0:00:00]} Rc8 $1 {[%emt 0:02:19]} 16. Be3 {[%emt 0:00:00] Inhibits Rc5.} Bf6 {[%emt 0:06:54]} ({Black should play} 16... Qc7 $14) 17. Nxd7 {[%emt 0:00:00]} (17. Be4 $2 g6 18. Nxf7 (18. Bxb6 $2 axb6 19. Qe2 Bxe5 $19) 18... Rxf7 $19) 17... Nxd7 {[%emt 0:03:38]} 18. Rad1 {[%emt 0:00:00]} Qe7 {[%emt 0:09:17] [#]} (18... Qc7 $1 $14) 19. Bh3 $1 {[%emt 0:00:00] A strong pair of Bishops.} Rfd8 {[%emt 0:06:57]} 20. Bxa7 {[%emt 0:00:00]} (20. Qb5 $16 Rb8 21. Qxc4) 20... Ra8 $1 $11 {[%emt 0:04:59]} (20... Bxb2 $2 21. Qb5 (21. Rfe1 Ne5 $16) 21... Nf8 22. Rxd8 (22. Qxb2 Qxa7 23. Bxc8 Rxc8 $18) (22. Bxc8 Rxc8 23. Qxb2 Qxa7 $18) 22... Rxd8 23. Bb6 $18 (23. Qxb2 Qxa7 24. Rc1 c3 $11)) 21. Be3 {[%emt 0:00:00]} Rxa2 {[%emt 0:03:22]} 22. Qb5 {[%emt 0:04:47][%cal Rd1d7]} Ne5 {[%emt 0:00:25][%cal Oa2b2]} 23. Bc5 {[%emt 0:00:48]} Qe8 {[%emt 0:01:39]} 24. Rxd8 {[%emt 0:01:45]} Qxd8 {[%emt 0:00:04]} 25. Ba3 {[%emt 0:01:12]} h6 {[%emt 0:02:34]} (25... c3 $11 26. Bg2 cxb2) 26. Bg2 $1 $14 {[%emt 0:00:44] Hoping for Bd5.} ({Reject} 26. f4 Nd3 27. Qxc4 Qd4+ 28. Qxd4 Bxd4+ 29. Kh1 Nxb2 30. Bxb2 Rxb2 $11) 26... Qd7 {[%emt 0:01:45]} (26... c3 $1 $14) 27. Qb8+ {[%emt 0:01:11]} Kh7 $1 {[%emt 0:00:05]} 28. Be4+ {[%emt 0:00:28]} g6 {[%emt 0:00:04]} 29. Kg2 {[%emt 0:00:32]} (29. Qb4 $11) 29... Nd3 $15 {[%emt 0:00:48][%cal Rf6b2]} 30. h4 {[%emt 0:00:28]} Bxb2 {[%emt 0:00:55] Black is more active.} 31. Bxb2 {[%emt 0:00:33]} (31. Qd6 $17 {keeps fighting.} Qe8 32. Bxd3 Rxa3 33. Bc2) 31... Rxb2 $19 {[%emt 0:00:03] Chess con chili.} 32. Qf8 {[%emt 0:00:25]} (32. Qa8 $17) 32... Qa7 {[%emt 0:01:25][%cal Rd3f2]} 33. h5 {[%emt 0:00:31]} Rxf2+ {[%emt 0:00:16]} 34. Rxf2 {[%emt 0:00:32]} Qxf2+ {[%emt 0:00:05][%mdl 4096] Endgame KQB-KQN} 35. Kh3 {[%emt 0:00:06]} Qf1+ {[%emt 0:01:39]} 36. Kh2 {[%emt 0:00:53] White wants to mate with hxg6+.} Qe2+ {[%emt 0:00:53]} 37. Kg1 {[%emt 0:00:01]} Qf2+ {[%emt 0:06:09]} ({And not} 37... Qxe4 38. Qxf7+ Kh8 39. Qf8+ Kh7 40. Qf7+ Kh8 41. Qf8+ Kh7 42. Qf7+ $11) 38. Kh1 {[%emt 0:00:01]} Qf1+ $2 {[%emt 0:01:12]} (38... Qe1+ $19 39. Kh2 Qf2+ 40. Kh3 Qf1+ 41. Kh2 Qf2+ 42. Kh3) 39. Kh2 $11 {[%emt 0:00:05] Threatening mate with hxg6+.} Qf2+ {[%emt 0:00:08]} 40. Kh1 $2 {[%emt 0:01:49]} (40. Kh3 $11 {and White stays safe.}) 40... Ne5 $2 {[%emt 0:00:29]} (40... Qe1+ $19 41. Kh2 Qf2+ 42. Kh3 Qf1+ 43. Kh2) 41. hxg6+ {[%emt 0:04:21]} Nxg6 {[%emt 0:02:09]} 42. Bxg6+ {[%emt 0:00:25]} Kxg6 {[%emt 0:00:05] KQ-KQ} 43. Qg8+ {[%emt 0:00:13]} Kf6 {[%emt 0:01:31]} 44. Qh8+ {[%emt 0:01:29]} Ke6 {[%emt 0:01:54]} 45. Qe8+ $2 {[%emt 0:00:29][%mdl 8192] Black keeps a firm grip on the game.} (45. Qc8+ $15 Kd6 46. Qa6+ Kd5 47. Qb7+ Kd6 48. Qa6+ Ke7 49. Qxc4) 45... Kd6 $19 {[%emt 0:01:52] aiming for ...c3.} 46. Qb8+ {[%emt 0:01:39]} Kc6 {[%emt 0:00:29]} 47. Qa8+ {[%emt 0:00:53]} Kb5 {[%emt 0:00:19] Threatens to win with ...c3.} 48. Qb7+ {[%emt 0:00:36]} Ka4 {[%emt 0:00:51] White must now prevent ...c3.} 49. Qa6+ {[%emt 0:00:48]} Kb3 {[%emt 0:00:34]} 50. Qb5+ {[%emt 0:00:10]} Kc3 {[%emt 0:00:07]} 51. Qa5+ {[%emt 0:00:36]} Kd3 {[%emt 0:00:55]} 52. Qd5+ {[%emt 0:00:29]} Qd4 {[%emt 0:00:10] Black mates.} 53. Qxf7 {[%emt 0:00:48]} c3 {[%emt 0:27:10][%cal Bc4c3,Bc3c2][%mdl 32]} 54. Qf1+ {[%emt 0:02:35]} Kd2 {[%emt 0:00:00]} 55. Qg2+ {[%emt 0:00:11]} Kc1 {[%emt 0:00:00]} 56. Qa8 {[%emt 0:00:22]} c2 {[%emt 0:00:00]} 57. Kh2 {[%emt 0:01:18]} Kd1 {[%emt 0:00:00]} 58. Qh1+ {[%emt 0:01:54]} Ke2 {[%emt 0:00:00]} 59. Kh3 {[%emt 0:00:21]} Qd7+ {[%emt 0:00:00]} 60. g4 {[%emt 0:00:31]} Qd3+ {[%emt 0:00:00]} 61. Kh4 {[%emt 0:00:42]} Qf3 {[%emt 0:00:00]} 62. Qc1 {[%emt 0:01:23]} Qf6+ {[%emt 0:00:00] Weighted Error Value: White=0.66/Black=0.25 (precise)} 0-1

[Event "Austrian Championship 2022"]
[Site "Vienna"]
[Date "2022.08.15"]
[Round "5.9"]
[White "Steindl, Johannes"]
[Black "Sadilek, Maximilian"]
[Result "1/2-1/2"]
[ECO "C07"]
[WhiteElo "2312"]
[BlackElo "2230"]
[Annotator "TA"]
[PlyCount "32"]
[EventDate "2022.08.12"]
[EventType "swiss"]
[EventCountry "AUT"]
[SourceTitle "playchess.com"]
[Source "ChessBase"]
[SourceQuality "1"]
[TimeControl "40/5400+30:1800+30"]

{[%evp 20,21,0,5]} 1. e4 {[%emt 0:04:33]} e6 {[%emt 0:00:39]} 2. d4 {[%emt 0:00:09]} d5 {[%emt 0:00:25]} 3. Nd2 {[%emt 0:00:17]} c5 {[%emt 0:00:11]} 4. Ngf3 {[%emt 0:00:21]} cxd4 {[%emt 0:00:28]} 5. exd5 {[%emt 0:00:06]} Qxd5 {[%emt 0:00:08]} 6. Bc4 {[%emt 0:00:07]} Qd6 {[%emt 0:00:12]} 7. O-O {[%emt 0:00:08]} Nf6 {[%emt 0:00:06]} 8. Nb3 {[%emt 0:00:08]} Nc6 {[%emt 0:00:08]} 9. Nbxd4 {[%emt 0:00:07]} Nxd4 {[%emt 0:00:05]} 10. Qxd4 {[%emt 0:00:23]} Qxd4 {[%emt 0:00:16]} 11. Nxd4 {[%emt 0:00:08] [#]} {Predecessor:} Bd7 $146 {C07: French Tarrasch: 3...c5, 4 Ngf3 and 4 exd5 Qxd5.} 12. Bf4 Rc8 13. Be2 Bc5 14. Nb3 Be7 15. c3 O-O 16. Rfd1 Ba4 {½-½ (16) Grandelius,N (2670)-Vachier Lagrave,M (2760) Chalons en Champagne 2021} 1/2-1/2

[Event "Austrian Championship 2022"]
[Site "Vienna"]
[Date "2022.08.15"]
[Round "5.10"]
[White "Schernthaner, David"]
[Black "Teuschler, Barbara"]
[Result "1-0"]
[ECO "D22"]
[WhiteElo "2319"]
[BlackElo "2097"]
[Annotator "TA"]
[PlyCount "51"]
[EventDate "2022.08.12"]
[EventType "swiss"]
[EventCountry "AUT"]
[SourceTitle "playchess.com"]
[Source "ChessBase"]
[SourceQuality "1"]
[TimeControl "40/5400+30:1800+30"]

{[%evp 18,51,33,29,35,0,8,0,0,0,0,0,0,0,0,0,0,0,0,0,-4,-20,-14,-15,0,0,0,0,0,0,0,0,29995,29996,29996,29997]} 1. d4 {[%emt 0:00:02]} d5 {[%emt 0:00:07]} 2. c4 {[%emt 0:00:03]} dxc4 {[%emt 0:00:03]} 3. Nf3 {[%emt 0:00:08]} Nf6 {[%emt 0:00:04]} 4. e3 {[%emt 0:00:05]} Bg4 {[%emt 0:00:03]} 5. Bxc4 {[%emt 0:01:52]} e6 {[%emt 0:00:03]} 6. h3 {[%emt 0:01:46]} Bh5 {[%emt 0:00:06]} 7. Nc3 {[%emt 0:01:58]} a6 {[%emt 0:00:58]} 8. O-O {[%emt 0:02:12]} Nc6 {[%emt 0:00:14]} 9. Be2 {[%emt 0:02:49] 9.Re1 injects fresh life into this line.} Bd6 {[%emt 0:00:10]} 10. a3 {[%emt 0:06:52]} O-O {[%emt 0:00:19] D22: Queen's Gambit Accepted: 3 Nf3 a6 4 e3.} 11. Qc2 {[%emt 0:04:11] [#]} Qe8 $146 {[%emt 0:03:52]} ({Predecessor:} 11... Qe7 12. Rd1 Rad8 13. b4 e5 14. d5 Nb8 15. e4 Bxf3 16. Bxf3 h6 17. Be3 c6 18. dxc6 Nxc6 {½-½ (34) Koloditsova,R (1937)-Jakubek,P (2116) Topolcany 2021}) 12. Ng5 {[%emt 0:09:05] [#] And now Bxh5 would win.} Bxe2 {[%emt 0:05:13] The position is equal.} 13. Qxe2 {[%emt 0:01:01]} e5 {[%emt 0:04:50]} 14. d5 {[%emt 0:03:18]} Ne7 {[%emt 0:00:05]} 15. e4 {[%emt 0:00:42]} c6 {[%emt 0:08:02]} (15... h6 $5 16. Nf3 c6 $11) 16. dxc6 {[%emt 0:07:53]} Nxc6 {[%emt 0:00:37]} 17. Nd5 {[%emt 0:02:20]} Nxd5 {[%emt 0:05:11]} 18. exd5 {[%emt 0:00:05]} Nd4 {[%emt 0:08:39]} 19. Qh5 {[%emt 0:05:22][%csl Gg5][%cal Rh5h7]} h6 {[%emt 0:00:02]} 20. Ne4 {[%emt 0:00:12]} Bc7 {[%emt 0:04:08]} 21. Nf6+ $40 {[%emt 0:25:52][%mdl 128] White is up to no good.} gxf6 {[%emt 0:00:04]} 22. Bxh6 {[%emt 0:00:04] White wants to mate with Qg4+.} Qd7 {[%emt 0:00:12] aiming for ...Rfc8.} 23. Rac1 $1 {[%emt 0:00:12][%cal Ba1c1,Bc1c3,Bc3g3][%mdl 32]} Rfc8 $1 {[%emt 0:17:11] Hoping for ...Qf5.} 24. Rc3 {[%emt 0:04:49] Intending Rg3+ and mate.} Qf5 $2 {[%emt 0:00:38][%mdl 8192] [#]} (24... e4 $11) 25. Rg3+ {[%emt 0:01:03]} Kh7 {[%emt 0:00:07]} 26. Bg5+ {[%emt 0:01:03] Weighted Error Value: White=0.04 (flawless) /Black=0.55} 1-0

[Event "Austrian Championship 2022"]
[Site "Vienna"]
[Date "2022.08.15"]
[Round "5.12"]
[White "Balinov, Ilia"]
[Black "Pilshofer, Paul"]
[Result "1-0"]
[ECO "A15"]
[WhiteElo "2419"]
[BlackElo "2223"]
[Annotator "TA"]
[PlyCount "85"]
[EventDate "2022.08.12"]
[EventType "swiss"]
[EventCountry "AUT"]
[SourceTitle "playchess.com"]
[Source "ChessBase"]
[SourceQuality "1"]
[TimeControl "40/5400+30:1800+30"]

{[%evp 9,84,3,20,8,7,-8,0,-8,0,0,21,12,11,-14,-14,-51,-29,-24,43,11,97,95,97,81,100,82,85,85,81,57,126,54,29,39,95,0,35,13,51,0,38,-87,-80,-278,0,0,131,120,126,140,335,345,345,310,332,331,421,322,485,465,819,893,29992,1758,29993,29994,29995,29995,29995,29996,29996,29997,29997,29996,29998,29999,29999]} 1. c4 {[%emt 0:00:03]} Nf6 {[%emt 0:06:41]} 2. g3 {[%emt 0:00:00]} d5 {[%emt 0:00:32]} 3. cxd5 {[%emt 0:00:00]} Nxd5 {[%emt 1:24:47]} 4. Bg2 {[%emt 0:00:04]} g6 {[%emt 0:00:00]} 5. Qa4+ {[%emt 0:04:30]} Nc6 {[%emt 0:00:00]} 6. Nc3 {[%emt 0:01:46] A15: English Opening: 1...Nf6.} e6 {[%emt 0:00:00]} 7. d3 {[%emt 0:07:55]} Bg7 {[%emt 0:00:00] [#]} 8. Bd2 $146 {[%emt 0:03:31] The position is equal.} ({Predecessor:} 8. Nxd5 exd5 9. Qb5 Qe7 10. Bxd5 O-O 11. Kf1 Nd4 12. Qa5 Qe5 13. Bf4 Qf5 14. e4 {0-1 (35) Degtyaryov,S (2260)-Goncharov,O ICCF email 2011}) 8... O-O {[%emt 0:00:00]} 9. Nf3 {[%emt 0:01:03]} Nb6 {[%emt 0:00:00]} 10. Qc2 {[%emt 0:01:35]} e5 {[%emt 0:00:00]} 11. Ne4 {[%emt 0:02:26]} Bg4 {[%emt 0:00:00]} 12. Bg5 {[%emt 0:01:00]} (12. e3 {seems wilder.} f5 13. Nc5 e4 14. Nh4) 12... Qd7 {[%emt 0:00:00]} 13. Nc5 {[%emt 0:09:10][%csl LRb7,LRd7]} Qf5 {[%emt 0:00:00]} (13... Qe8 $11) 14. Be3 {[%emt 0:03:43]} Nb4 {[%emt 0:00:00]} (14... Nd5 $11) 15. Qb3 $16 {[%emt 0:08:18] And now Nh4 would win.} Nc6 {[%emt 0:00:00]} 16. Rc1 {[%emt 0:06:49]} Qc8 {[%emt 0:00:00]} 17. Ng5 {[%emt 0:02:09][%cal Oc5b7] Black must now prevent Nxb7!} Nd8 {[%emt 0:02:22]} 18. a4 {[%emt 0:03:47] 0x0.002364225212dp-1022s more active pieces.} h6 {[%emt 0:02:18]} 19. Nge4 {[%emt 0:17:50]} Bh3 {[%emt 0:00:01]} (19... c6 $14) 20. O-O {[%emt 0:03:46]} (20. Bxh3 $1 $16 Qxh3 21. a5) 20... Bxg2 $14 {[%emt 0:00:23]} 21. Kxg2 {[%emt 0:00:02]} Nc6 {[%emt 0:00:31]} (21... Kh7 $14) 22. Kg1 {[%emt 0:15:45]} ({Better is} 22. a5 $1 $16 {[%cal Ra5b6]}) 22... Rb8 {[%emt 0:00:16]} 23. Rfe1 {[%emt 0:01:13][%cal Oa4a5,Bf1e1,Be1e2,Be2e4,Be4h4][%mdl 32]} Kh7 {[%emt 0:00:14] [#]} (23... Rd8 {feels hotter.} 24. Na6 Ra8 25. Rc5 Bf8) 24. Qa2 {[%emt 0:01:15]} (24. Na6 $1 $14 bxa6 (24... Ra8 25. Bc5) 25. Rxc6) 24... f5 {[%emt 0:00:55][%cal Bf7f5,Bf5f4][%mdl 32]} 25. Nc3 {[%emt 0:00:51]} (25. a5 $14 {stays ahead.}) 25... f4 $17 {[%emt 0:00:05]} 26. Bd2 $2 {[%emt 0:01:20] [#]} (26. Ne6 $17 {was forced.} fxe3 27. Nxf8+ Qxf8 28. fxe3) 26... Nd4 $2 {[%emt 0:00:00]} ({Black should play} 26... Qh3 $1 $19 {( -> ...fxg3)} 27. Ne6 Rf5) 27. Nb5 $1 $36 {[%emt 0:00:02][%mdl 2048] Nxd4 is the strong threat. White has some pressure.} Nxe2+ {[%emt 0:00:39]} 28. Rxe2 $16 {[%emt 0:00:04] Hoping for Ne6. White stays focused until the end.} f3 {[%emt 0:00:00] [#]} 29. Ne6 $1 {[%emt 0:00:32]} (29. Nxa7 $2 Qh3) 29... c6 {[%emt 0:02:42]} (29... Re8 $16 {was worth a try.}) 30. Nxf8+ $18 {[%emt 0:03:13]} ({Less strong is} 30. Nxa7 Qd7 31. Re3 (31. Nxf8+ Rxf8 32. Re3 Qh3 $17) 31... Rf6 32. Nxg7 (32. Rxe5 Nd5 $15) 32... Qh3 33. Rxf3 Rxf3 $16) 30... Qxf8 {[%emt 0:00:17] [#]} 31. Re4 {[%emt 0:00:02]} cxb5 {[%emt 0:00:34]} 32. Rc7 {[%emt 0:00:24][%cal Bc1c7,Bc7f7,Bf7f3][%mdl 32]} ({Resist} 32. axb5 Rd8 $18) 32... Rc8 {[%emt 0:00:39]} 33. Rf7 {[%emt 0:01:22]} Qc5 {[%emt 0:01:02]} (33... Qd6 $142 34. Rxf3 Nd5) 34. Rxf3 {[%emt 0:00:12]} Qc2 {[%emt 0:00:15] [#]} (34... Rc7 $142 35. Rf7 Qd5) 35. Bxh6 $1 {[%emt 0:01:09][%mdl 512]} Kxh6 {[%emt 0:01:29]} (35... Nc4 36. Bxg7) 36. Rh4+ {[%emt 0:00:25]} Kg5 {[%emt 0:00:00]} 37. Qe6 {[%emt 0:00:18][%csl Gh4][%cal Re6g4] White mates.} Qd1+ {[%emt 0:01:12]} 38. Kg2 {[%emt 0:00:02][%csl Gh4][%cal Re6g4]} Qxf3+ {[%emt 0:00:29]} 39. Kxf3 {[%emt 0:00:02]} Rf8+ {[%emt 0:00:03]} 40. Kg2 {[%emt 0:00:07]} Rf5 {[%emt 0:00:31]} 41. Rh7 {[%emt 0:30:48]} Bf6 {[%emt 0:30:17]} 42. h4+ {[%emt 0:00:14]} Kg4 {[%emt 0:00:02]} 43. f3# {[%emt 0:00:05] Weighted Error Value: White=0.30/Black=0.59} 1-0

[Event "Austrian Championship 2022"]
[Site "Vienna"]
[Date "2022.08.15"]
[Round "5.13"]
[White "Albadri Abd Al Sattar"]
[Black "Kristoferitsch, Daniel"]
[Result "0-1"]
[ECO "E38"]
[WhiteElo "2161"]
[BlackElo "2312"]
[Annotator "TA"]
[PlyCount "92"]
[EventDate "2022.08.12"]
[EventType "swiss"]
[EventCountry "AUT"]
[SourceTitle "playchess.com"]
[Source "ChessBase"]
[SourceQuality "1"]
[TimeControl "40/5400+30:1800+30"]

{[%evp 12,92,37,37,43,23,44,25,28,21,26,26,24,29,27,24,37,6,39,33,45,0,39,22,15,0,0,0,-14,-79,0,0,0,-260,-270,-270,-268,-262,-268,-260,-238,-254,-220,-227,-195,-194,-162,-160,-153,-153,-153,-182,-188,-195,-192,-187,-173,-206,-206,-214,-212,-208,-206,-265,-209,-219,-220,-331,-327,-327,-319,-345,-342,-400,-387,-500,-500,-580,-605,-586,-572,-472,-410]} 1. d4 {[%emt 0:00:39]} Nf6 {[%emt 0:00:10]} 2. c4 {[%emt 0:00:47]} e6 {[%emt 0:00:06]} 3. Nc3 {[%emt 0:00:08]} Bb4 {[%emt 0:00:05]} 4. Qc2 {[%emt 0:00:58]} c5 {[%emt 0:00:07]} 5. dxc5 {[%emt 0:00:07]} Qc7 {[%emt 0:00:07]} 6. a3 {[%emt 0:00:59]} Bxc5 {[%emt 0:00:29]} 7. Nf3 {[%emt 0:01:37]} a6 {[%emt 0:00:09] E38: Nimzo-Indian: Classical: 4...c5.} 8. e3 {[%emt 0:00:44]} Be7 {[%emt 0:01:38]} 9. Bd3 {[%emt 0:01:42]} b6 {[%emt 0:00:31] White has an edge.} 10. O-O {[%emt 0:00:24]} Bb7 {[%emt 0:00:08]} 11. e4 {[%emt 0:01:24]} d6 {[%emt 0:00:10]} 12. h3 {[%emt 0:04:11]} Nbd7 {[%emt 0:00:45]} 13. b4 {[%emt 0:00:11]} Rc8 {[%emt 0:01:28][%cal Ob6b5]} 14. Bb2 {[%emt 0:02:37] [#]} Rg8 $146 {[%emt 0:15:57]} ({Predecessor:} 14... O-O 15. Rac1 Rfe8 16. Ne2 Bf8 17. Qb1 Qb8 18. Ng3 g6 19. Rcd1 Qa8 20. Rfe1 e5 {0-1 (69) Varga,C (2342)-Farago,I (2531) Budapest 2007}) 15. Qe2 {[%emt 0:12:24]} g5 {[%emt 0:07:51]} 16. Rac1 {[%emt 0:04:21]} h5 {[%emt 0:04:16] [#]} 17. Nd5 $1 {[%emt 0:06:37]} exd5 {[%emt 0:09:31]} 18. cxd5 {[%emt 0:03:25]} Qd8 {[%emt 0:00:14]} 19. Rxc8 {[%emt 0:01:26]} Qxc8 {[%emt 0:00:43]} 20. e5 {[%emt 0:01:28] [#]} (20. Nd4 $11 {remains equal.}) 20... dxe5 {[%emt 0:02:32]} ({Don't play} 20... Nxd5 21. exd6 Qc6 22. Bxa6 (22. dxe7 Nf4 $14) 22... Bxa6 23. Qxa6 $16) (20... Nxe5 $1 $17 21. Rc1 Qd7 22. Nxe5 dxe5 23. Qxe5 Kf8) 21. Rc1 $1 $11 {[%emt 0:12:22]} Qd8 {[%emt 0:04:14] ...g4 is the strong threat.} 22. d6 $2 {[%emt 0:15:48][%mdl 8192] White is now going downhill.} (22. Bxa6 $11 Qa8 23. Bb5) 22... Bxd6 $19 {[%emt 0:02:16]} 23. Nxe5 {[%emt 0:00:51]} Nxe5 {[%emt 0:13:55]} 24. Bxe5 {[%emt 0:00:43]} Kf8 {[%emt 0:00:15] Strongly threatening ...Bxe5.} 25. Bxa6 {[%emt 0:14:14][%cal Bd3a6,Ba6b7,Bb7f3,Bf3h5,Bh5e2,Be2c4,Bc4d5,Bd5e4][%mdl 32]} Bxe5 {[%emt 0:10:14]} 26. Bxb7 {[%emt 0:00:16] aiming for Rc8.} Qe7 {[%emt 0:01:34] White must now prevent ...Bh2+.} 27. Bf3 {[%emt 0:03:14]} Bd6 {[%emt 0:11:47]} 28. Bxh5 {[%emt 0:02:15]} Qxe2 {[%emt 0:00:13]} 29. Bxe2 {[%emt 0:00:02]} Ke7 {[%emt 0:00:28]} 30. Rc6 {[%emt 0:01:16]} Rb8 {[%emt 0:01:13]} 31. Bc4 {[%emt 0:00:52]} Nd7 {[%emt 0:01:29]} 32. Bd5 {[%emt 0:01:19]} Ne5 {[%emt 0:00:51]} 33. Rc3 {[%emt 0:00:06]} Rd8 {[%emt 0:02:15][%cal Od6b4] And now ...Bxb4! would win.} 34. Re3 {[%emt 0:01:43]} Kf6 {[%emt 0:00:51][%cal Od6b4] Hoping for ...Bxb4!} 35. Be4 {[%emt 0:00:46]} Bb8 {[%emt 0:02:01] ( -> ...Rd1+)} 36. g3 {[%emt 0:00:09]} Rd4 {[%emt 0:00:36]} 37. Bh7 {[%emt 0:01:02]} Bd6 {[%emt 0:03:21]} 38. Kg2 {[%emt 0:00:22]} Ke6 {[%emt 0:02:46]} 39. g4 {[%emt 0:01:20]} (39. Re4 {is a better defense.} Rxe4 40. Bxe4) 39... Kd5 {[%emt 0:00:48]} 40. Bf5 {[%emt 0:00:56]} Nc4 {[%emt 0:01:43]} 41. Rc3 {[%emt 0:30:06]} Rd2 {[%emt 0:05:40]} 42. Bh7 {[%emt 0:00:00]} Kd4 {[%emt 0:07:35]} 43. Rf3 {[%emt 0:00:00]} Bf4 {[%emt 0:00:17] Threatens to win with ...Ne3+. Black is clearly winning.} 44. Kf1 {[%emt 0:00:00]} Ne5 {[%emt 0:02:19]} 45. Rb3 {[%emt 0:00:00]} Kc4 {[%emt 0:01:37]} 46. Rb1 {[%emt 0:00:00]} Ra2 {[%emt 0:00:29] Weighted Error Value: White=0.33/Black=0.09 (flawless)} 0-1

[Event "Austrian Championship 2022"]
[Site "Vienna"]
[Date "2022.08.15"]
[Round "5.14"]
[White "Ganaus, Hannes"]
[Black "Leitner, Gerald"]
[Result "1-0"]
[ECO "A47"]
[WhiteElo "2284"]
[BlackElo "2145"]
[Annotator "NA RC"]
[PlyCount "67"]
[EventDate "2022.08.12"]
[EventType "swiss"]
[EventCountry "AUT"]
[SourceTitle "playchess.com"]
[Source "ChessBase"]
[SourceQuality "1"]
[TimeControl "40/5400+30:1800+30"]

1. d4 {[%emt 0:00:03]} Nf6 {[%emt 0:00:03]} 2. Nf3 {[%emt 0:00:05]} e6 {[%emt 0:01:20]} 3. Bg5 {[%emt 0:00:50]} h6 {[%emt 0:00:38]} 4. Bh4 {[%emt 0:00:06]} c5 {[%emt 0:01:07]} 5. e3 {[%emt 0:00:06]} cxd4 {[%emt 0:04:53]} 6. exd4 {[%emt 0:00:03]} Nc6 {[%emt 0:00:08]} 7. Nbd2 {[%emt 0:01:23]} Be7 {[%emt 0:00:54]} 8. c3 {[%emt 0:02:10]} O-O {[%emt 0:01:41]} 9. Bd3 {[%emt 0:01:33]} b6 {[%emt 0:03:32]} 10. O-O {[%emt 0:02:10]} Bb7 {[%emt 0:00:01]} 11. Re1 {[%emt 0:06:12]} Rc8 {[%emt 0:01:49]} 12. Nc4 {[%emt 0:23:08]} d6 {[%emt 0:03:50]} 13. Ne3 {[%emt 0:06:14]} Nh5 {[%emt 0:07:44]} 14. Bg3 {[%emt 0:12:32]} Nxg3 {[%emt 0:00:32]} 15. hxg3 {[%emt 0:00:11]} Nb8 {[%emt 0:02:05]} 16. Bc2 {[%emt 0:08:17]} Nd7 {[%emt 0:09:30]} 17. Qd3 {[%emt 0:04:11]} g6 {[%emt 0:01:02]} 18. Ng4 {[%emt 0:00:52]} Kg7 {[%emt 0:01:09]} 19. Rxe6 {[%emt 0:00:40]} f5 {[%emt 0:02:34]} 20. Rae1 {[%emt 0:03:45]} Rf7 {[%emt 0:03:18]} 21. Qe3 {[%emt 0:04:45]} Bg5 {[%emt 0:04:27]} 22. Nxg5 {[%emt 0:00:12]} hxg5 {[%emt 0:03:18]} 23. Rxd6 {[%emt 0:03:50]} Qc7 {[%emt 0:07:31]} 24. Rxd7 {[%emt 0:03:42]} Qxd7 {[%emt 0:00:05]} 25. Qe5+ {[%emt 0:00:17]} Kh7 {[%emt 0:00:57]} 26. Nf6+ {[%emt 0:00:08]} Rxf6 {[%emt 0:00:10]} 27. Qxf6 {[%emt 0:00:02]} Re8 {[%emt 0:01:47]} 28. Rxe8 {[%emt 0:04:28]} Qxe8 {[%emt 0:00:01]} 29. Kh2 {[%emt 0:06:41]} g4 {[%emt 0:05:51]} 30. Bb3 {[%emt 0:03:39]} Qe4 {[%emt 0:03:10]} 31. Qf7+ {[%emt 0:00:52]} Kh6 {[%emt 0:00:05]} 32. d5 {[%emt 0:00:33]} Ba6 {[%emt 0:00:50]} 33. Qf8+ {[%emt 0:01:49]} Kg5 {[%emt 0:01:27]} 34. d6 {[%emt 0:01:16]} 1-0